bitfinex/quotes_BTCUSD_20251104
["timestamp","ask_amount","ask_price","bid_price","bid_amount"]
[1762282512190,0.19745285,101290.0,101280.0,0.00999999]
[1762282512316,0.19751135,101260.0,101250.0,0.10776604]
[1762282512524,0.19751135,101260.0,101250.0,0.09776605]
[1762282512733,0.19747323,101280.0,101260.0,0.20751058]
[1762282513013,0.19747323,101280.0,101270.0,0.00999999]
[1762282513159,0.20685302,101300.0,101280.0,0.19747131]
[1762282513337,0.23934456,101310.0,101280.0,0.19747131]
[1762282513338,0.23934456,101310.0,101290.0,0.19745285]
[1762282513563,0.19743336,101300.0,101290.0,0.00999999]
[1762282513767,0.19745285,101290.0,101280.0,0.00999999]
[1762282514006,0.19747235,101280.0,101270.0,0.02699999]
[1762282514210,0.19747235,101280.0,101270.0,0.01014471]
[1762282514519,0.19747235,101280.0,101270.0,0.20763656]
[1762282514719,0.25980235,101280.0,101270.0,0.01014471]
[1762282514931,0.90354159,101280.0,101270.0,0.00014472]
[1762282515314,1.24354159,101280.0,101270.0,0.00014472]
[1762282516483,0.1971969,101280.0,101270.0,0.00214472]
[1762282516689,0.1971969,101280.0,101270.0,0.01214471]
[1762282516889,0.1971969,101280.0,101270.0,0.01014471]
[1762282517327,0.1991969,101280.0,101270.0,0.01014471]
[1762282517507,0.19745307,101290.0,101280.0,0.00999999]
[1762282517741,0.19747235,101280.0,101270.0,0.00014472]
[1762282517894,0.25980235,101280.0,101270.0,0.01014471]
[1762282518115,0.19747235,101280.0,101270.0,0.01014471]
[1762282518485,0.25980235,101280.0,101270.0,0.00214472]
[1762282518693,1.24354159,101280.0,101270.0,0.00214472]
[1762282519300,0.59980235,101280.0,101270.0,0.00214472]
[1762282519702,0.59980235,101280.0,101270.0,0.00014472]
[1762282520107,0.59980235,101280.0,101270.0,0.00214472]
[1762282520339,0.59980235,101280.0,101270.0,0.00014472]
[1762282520718,0.6975684,101280.0,101270.0,0.00014472]
[1762282520914,0.6995684,101280.0,101270.0,0.00014472]
[1762282521342,0.19753086,101250.0,101240.0,0.01025073]
[1762282521547,0.22959086,101250.0,101240.0,0.00025074]
[1762282521790,0.29192086,101250.0,101240.0,0.00025074]
[1762282522384,0.19753086,101250.0,101240.0,0.19780111]
[1762282522619,0.20740009,101270.0,101260.0,0.19751135]
[1762282522834,0.19747402,101280.0,101270.0,0.20749042]
[1762282522989,0.19761693,101280.0,101270.0,0.20749042]
[1762282523192,0.00014458,101280.0,101270.0,0.20749184]
[1762282523395,0.00014458,101280.0,101270.0,0.26834184]
[1762282523635,0.00014458,101280.0,101270.0,0.24434184]
[1762282523839,4.58e-06,101280.0,101270.0,0.78434184]
[1762282524095,0.03247,101330.0,101310.0,0.00999999]
[1762282524265,0.03247,101330.0,101270.0,0.2]
[1762282524266,0.22992285,101290.0,101270.0,0.2]
[1762282524467,0.22992285,101290.0,101240.0,0.29040033]
[1762282524468,0.19750905,101270.0,101240.0,0.29040033]
[1762282524648,0.19750905,101270.0,101250.0,0.19753086]
[1762282524845,0.53748753,101310.0,101280.0,0.19746841]
[1762282525091,0.23974756,101330.0,101300.0,0.017]
[1762282525285,0.19739554,101320.0,101300.0,0.017]
[1762282525482,0.19741387,101310.0,101300.0,0.017]
[1762282525684,0.19741387,101310.0,101290.0,0.04644]
[1762282525685,0.19743336,101300.0,101290.0,0.06344]
[1762282526042,0.19743336,101300.0,101290.0,0.017]
[1762282526275,0.19745285,101290.0,101280.0,0.0040282]
[1762282527524,0.25836285,101290.0,101280.0,0.0070282]
[1762282527734,0.94768171,101290.0,101280.0,0.0070282]
[1762282528569,1.28768171,101290.0,101280.0,0.0070282]
[1762282529003,1.28768171,101290.0,101280.0,0.0040282]
[1762282529209,1.28768171,101290.0,101240.0,0.00025074]
[1762282529210,0.19253086,101250.0,101240.0,0.00025074]
[1762282529417,0.19253086,101250.0,101240.0,0.00039532]
[1762282530293,0.19753086,101250.0,101240.0,0.19794569]
[1762282530503,0.19753086,101250.0,101240.0,0.00739532]
[1762282530719,0.19753086,101250.0,101240.0,0.00039532]
[1762282530904,0.19752835,101260.0,101240.0,0.19794569]
[1762282531137,0.23986935,101270.0,101240.0,0.19794569]
[1762282531138,0.22996599,101270.0,101250.0,0.19753086]
[1762282531358,0.22998813,101280.0,101260.0,0.19751135]
[1762282531564,0.19751813,101280.0,101270.0,0.19749185]
[1762282531773,0.19747235,101280.0,101270.0,0.19749185]
[1762282531975,0.19749185,101270.0,101250.0,0.2540074]
[1762282532181,0.19751135,101260.0,101250.0,0.24412806]
[1762282532401,0.19749185,101270.0,101250.0,0.24412806]
[1762282532588,0.19749185,101270.0,101260.0,0.19751135]
[1762282533239,0.20732549,101290.0,101270.0,0.19749185]
[1762282533444,0.19745315,101290.0,101270.0,0.19749185]
[1762282533581,0.19745315,101290.0,101270.0,0.23216185]
[1762282533783,0.20734596,101280.0,101250.0,0.23619806]
[1762282533981,0.19751135,101260.0,101250.0,0.004]
[1762282534192,0.18147251,101250.0,101240.0,0.00039532]
[1762282534395,0.15899085,101250.0,101240.0,0.00039532]
[1762282534600,0.15899085,101250.0,101240.0,0.19794569]
[1762282534806,0.19751194,101260.0,101240.0,0.23261569]
[1762282535069,0.19751194,101260.0,101250.0,0.19753086]
[1762282535278,0.23737342,101270.0,101250.0,0.19753086]
[1762282535505,0.19751135,101260.0,101250.0,0.19753086]
[1762282535712,0.23737342,101270.0,101250.0,0.22153086]
[1762282536131,0.19749185,101270.0,101260.0,0.19751135]
[1762282536321,0.19747243,101280.0,101260.0,0.19751135]
[1762282536558,0.19751135,101260.0,101250.0,0.2084074]
[1762282536734,0.19749185,101270.0,101250.0,0.2084074]
[1762282536934,0.19749185,101270.0,101260.0,0.19751135]
[1762282537144,0.19747243,101280.0,101270.0,0.19749185]
[1762282537381,0.20732579,101290.0,101270.0,0.19749185]
[1762282537599,0.20730502,101300.0,101280.0,0.19747235]
[1762282538026,0.19745285,101290.0,101280.0,0.19747235]
[1762282538220,0.20730502,101300.0,101290.0,0.19745285]
[1762282538427,0.77857471,101300.0,101280.0,0.19747235]
[1762282538632,0.19745285,101290.0,101280.0,0.19747235]
[1762282538834,0.19747235,101280.0,101270.0,0.024]
[1762282539038,0.19747235,101280.0,101260.0,0.25394691]
[1762282539244,0.19747235,101280.0,101260.0,0.04670458]
[1762282539245,0.76874204,101280.0,101260.0,0.04670458]
[1762282539448,0.19745285,101290.0,101280.0,0.19747235]
[1762282539623,0.19743447,101300.0,101290.0,0.19745285]
[1762282539826,0.19743447,101300.0,101290.0,0.21227285]
[1762282540037,0.19741594,101310.0,101290.0,0.21227285]
[1762282540240,0.19741594,101310.0,101290.0,0.24694285]
[1762282540445,0.19743336,101300.0,101290.0,0.21227285]
[1762282540661,0.19743336,101300.0,101290.0,0.01482]
[1762282541203,0.19746467,101290.0,101270.0,0.27868161]
[1762282541352,0.19747235,101280.0,101270.0,0.24401161]
[1762282541574,0.57126969,101290.0,101280.0,0.22147235]
[1762282541773,0.57126969,101290.0,101270.0,0.2538862]
[1762282541774,0.19745285,101290.0,101270.0,0.2538862]
[1762282541981,0.19747235,101280.0,101270.0,0.2786798]
[1762282542161,0.19747235,101280.0,101270.0,0.2440098]
[1762282542374,0.19747235,101280.0,101270.0,0.2004898]
[1762282542550,0.19747235,101280.0,101270.0,0.2710098]
[1762282542782,0.19747235,101280.0,101270.0,0.04952]
[1762282543003,0.76874204,101280.0,101270.0,0.003]
[1762282543433,0.83466204,101280.0,101270.0,0.003]
[1762282543644,0.76874204,101280.0,101270.0,0.003]
[1762282544077,0.76874204,101280.0,101260.0,0.00014458]
[1762282544078,0.19749185,101270.0,101260.0,0.00014458]
[1762282544280,0.79875154,101270.0,101260.0,0.00014458]
[1762282544510,0.86467154,101270.0,101260.0,0.00014458]
[1762282545609,0.19749185,101270.0,101260.0,0.00114458]
[1762282545857,0.76876154,101270.0,101260.0,0.19865593]
[1762282546005,0.76876154,101270.0,101260.0,0.00114458]
[1762282546232,0.76876154,101270.0,101260.0,0.19865593]
[1762282546486,0.76876154,101270.0,101260.0,0.00114458]
[1762282546709,0.79875154,101270.0,101260.0,0.00114458]
[1762282547126,0.90807154,101270.0,101260.0,0.00114458]
[1762282548029,0.95260689,101270.0,101260.0,0.00114458]
[1762282548254,0.04453535,101270.0,101260.0,0.00114458]
[1762282548474,0.04453535,101270.0,101260.0,0.19865593]
[1762282548475,0.76876154,101270.0,101260.0,0.19865593]
[1762282548674,0.19747235,101280.0,101260.0,0.26799593]
[1762282548884,0.76874204,101280.0,101270.0,0.19749185]
[1762282549089,0.76874204,101280.0,101260.0,0.26799593]
[1762282549328,0.79875154,101270.0,101260.0,0.00114458]
[1762282549551,0.92027005,101270.0,101260.0,0.00114458]
[1762282549769,0.90802754,101270.0,101260.0,0.00114458]
[1762282550393,0.90802754,101270.0,101260.0,0.00014458]
[1762282550594,0.90802754,101270.0,101260.0,0.00314458]
[1762282551087,0.90802754,101270.0,101260.0,0.00014458]
[1762282551531,0.33675785,101270.0,101260.0,0.00314458]
[1762282551744,0.90802754,101270.0,101260.0,0.00314458]
[1762282551996,1.24802754,101270.0,101260.0,0.00414458]
[1762282552214,1.24802754,101270.0,101240.0,0.00025074]
[1762282552215,0.19753086,101250.0,101240.0,0.00025074]
[1762282552433,0.81158055,101250.0,101240.0,0.00025074]
[1762282552646,1.78198024,101250.0,101240.0,0.00025074]
[1762282553070,1.79196133,101250.0,101240.0,0.00025074]
[1762282553323,0.64942195,101250.0,101240.0,0.00025074]
[1762282553566,1.79196133,101250.0,101240.0,0.00025074]
[1762282553777,1.22069164,101250.0,101240.0,0.00025074]
[1762282554196,1.22269164,101250.0,101240.0,0.00025074]
[1762282554370,1.42527775,101250.0,101240.0,0.00025074]
[1762282555699,1.42027775,101250.0,101240.0,0.00025074]
[1762282556327,1.42027775,101250.0,101240.0,1e-08]
[1762282557197,1.43027774,101250.0,101240.0,1e-08]
[1762282558599,1.42027775,101250.0,101240.0,1e-08]
[1762282558816,1.43027774,101250.0,101240.0,1e-08]
[1762282559636,1.47646001,101250.0,101240.0,1e-08]
[1762282560535,2.25031581,101250.0,101240.0,1e-08]
[1762282560959,5.25031581,101250.0,101240.0,1e-08]
[1762282561176,4.47646001,101250.0,101240.0,1e-08]
[1762282561602,4.47446001,101250.0,101240.0,1e-08]
[1762282561829,4.47946001,101250.0,101240.0,1e-08]
[1762282562269,1.47946001,101250.0,101240.0,1e-08]
[1762282562753,1.46943775,101250.0,101240.0,1e-08]
[1762282562955,1.12443775,101250.0,101240.0,1e-08]
[1762282563409,1.51662002,101250.0,101240.0,1e-08]
[1762282563565,1.52062001,101250.0,101240.0,1e-08]
[1762282563973,1.52362001,101250.0,101240.0,1e-08]
[1762282564389,4.52362001,101250.0,101240.0,1e-08]
[1762282564818,5.29747581,101250.0,101240.0,1e-08]
[1762282565066,4.52362001,101250.0,101240.0,1e-08]
[1762282565398,4.56324858,101250.0,101240.0,1e-08]
[1762282565763,4.57245736,101250.0,101240.0,1e-08]
[1762282566193,4.5462839,101250.0,101240.0,1e-08]
[1762282566394,5.3201397,101250.0,101240.0,1e-08]
[1762282566850,5.33013969,101250.0,101240.0,1e-08]
[1762282567634,4.55628389,101250.0,101240.0,1e-08]
[1762282568414,4.65085995,101250.0,101240.0,1e-08]
[1762282568611,1.55628389,101250.0,101240.0,1e-08]
[1762282568945,1.1224753,101250.0,101240.0,1e-08]
[1762282569143,1.10126429,101250.0,101240.0,1e-08]
[1762282569882,1.09826429,101250.0,101240.0,1e-08]
[1762282570114,1.53484035,101250.0,101240.0,1e-08]
[1762282570991,1.53284035,101250.0,101240.0,1e-08]
[1762282571396,1.53384035,101250.0,101240.0,1e-08]
[1762282572225,1.62038401,101250.0,101240.0,1e-08]
[1762282572638,5.41262269,101250.0,101240.0,1e-08]
[1762282573053,3.87491108,101250.0,101240.0,1e-08]
[1762282573255,1.54419083,101250.0,101240.0,1e-08]
[1762282573466,1.52580795,101250.0,101240.0,1e-08]
[1762282573669,1.54319057,101250.0,101240.0,1e-08]
[1762282573850,1.54619062,101250.0,101240.0,1e-08]
[1762282574049,4.64076668,101250.0,101240.0,1e-08]
[1762282574253,5.41462248,101250.0,101240.0,1e-08]
[1762282574440,1.64076668,101250.0,101240.0,1e-08]
[1762282575664,1.74506668,101250.0,101240.0,1e-08]
[1762282577618,1.52619064,101250.0,101240.0,1e-08]
[1762282577822,1.13162569,101250.0,101240.0,1e-08]
[1762282578036,1.05510429,101250.0,101240.0,1e-08]
[1762282578918,1.05210429,101250.0,101240.0,1e-08]
[1762282579351,1.07430185,101250.0,101240.0,1e-08]
[1762282579573,1.39310429,101250.0,101240.0,1e-08]
[1762282580038,1.48768035,101250.0,101240.0,1e-08]
[1762282580241,0.73502482,101250.0,101240.0,1e-08]
[1762282580433,1.50888062,101250.0,101240.0,1e-08]
[1762282580566,1.41430456,101250.0,101240.0,1e-08]
[1762282580966,0.19760893,101210.0,101190.0,0.2004]
[1762282581171,1.44335425,101200.0,101190.0,0.00088298]
[1762282581404,0.19768706,101170.0,101140.0,0.3068469]
[1762282581616,0.27042792,101170.0,101150.0,0.19772591]
[1762282581861,0.32955792,101170.0,101140.0,0.30699138]
[1762282582077,1.10341372,101170.0,101150.0,0.19772475]
[1762282582283,1.10341372,101170.0,101140.0,0.30699138]
[1762282582284,0.32955792,101170.0,101140.0,0.30699138]
[1762282582490,0.27042792,101170.0,101150.0,0.19772533]
[1762282582694,0.2574066,101160.0,101140.0,0.33099138]
[1762282582868,0.19772614,101150.0,101140.0,0.00054448]
[1762282583082,0.03106,101150.0,101140.0,0.19829017]
[1762282583412,0.32979614,101150.0,101140.0,0.00854448]
[1762282583593,0.32979614,101150.0,101140.0,0.00054448]
[1762282583594,1.10365194,101150.0,101140.0,0.00054448]
[1762282584048,1.10365194,101150.0,101140.0,0.00854448]
[1762282584479,1.10365194,101150.0,101130.0,0.0004]
[1762282584480,0.97160149,101140.0,101130.0,0.0004]
[1762282584691,1.41261149,101140.0,101130.0,0.00054486]
[1762282585128,1.37130149,101140.0,101130.0,0.00054486]
[1762282585334,0.59744569,101140.0,101130.0,0.00054486]
[1762282585506,0.19776525,101130.0,101120.0,0.0004]
[1762282585712,0.19778481,101120.0,101110.0,1.0]
[1762282585984,1.06254502,101120.0,101110.0,1.0]
[1762282586185,0.09090441,101120.0,101110.0,1.0]
[1762282586394,0.09090441,101120.0,101110.0,1.19780437]
[1762282586618,0.03120441,101120.0,101110.0,1.22180437]
[1762282586781,0.00014441,101120.0,101110.0,1.19780437]
[1762282587192,0.09090441,101120.0,101110.0,1.19780437]
[1762282587403,0.03120441,101120.0,101110.0,1.19780437]
[1762282587607,0.03120441,101120.0,101110.0,1.22180437]
[1762282587779,0.03120441,101120.0,101110.0,1.19780437]
[1762282587978,0.00014441,101120.0,101110.0,1.27735665]
[1762282588186,0.00014441,101120.0,101110.0,1.47735665]
[1762282588598,0.00014441,101120.0,101110.0,2.28870245]
[1762282588797,1e-08,101120.0,101110.0,2.62470243]
[1762282588999,1e-08,101120.0,101110.0,2.64970243]
[1762282589201,1e-08,101120.0,101110.0,2.67570245]
[1762282589585,1e-08,101120.0,101110.0,2.67470245]
[1762282589798,1e-08,101120.0,101110.0,2.67370243]
[1762282590001,1e-08,101120.0,101110.0,2.67070243]
[1762282590209,1e-08,101120.0,101110.0,2.69470243]
[1762282590412,0.1977066,101160.0,101140.0,0.19774569]
[1762282590620,0.03106,101150.0,101140.0,0.20763297]
[1762282590838,0.03106,101150.0,101120.0,0.39774513]
[1762282590839,0.28848614,101150.0,101120.0,0.39774513]
[1762282591028,0.19774569,101140.0,101120.0,0.19774513]
[1762282591243,0.19774569,101140.0,101130.0,0.19776525]
[1762282591446,0.4324,101150.0,101130.0,0.19776525]
[1762282591664,0.4324,101150.0,101140.0,0.22174569]
[1762282591876,0.37106,101150.0,101140.0,0.19774569]
[1762282592119,0.56878614,101150.0,101130.0,0.19776525]
[1762282592324,0.19774569,101140.0,101120.0,0.21463437]
[1762282592540,0.25908569,101140.0,101120.0,0.20763437]
[1762282592748,0.25910525,101130.0,101110.0,1.20769458]
[1762282592959,0.02857,101120.0,101110.0,1.20769458]
[1762282593164,0.08991,101120.0,101110.0,1.19780437]
[1762282594062,0.08991,101120.0,101110.0,1.22180437]
[1762282594483,0.08991,101120.0,101110.0,1.19780437]
[1762282594702,0.02857,101120.0,101110.0,1.19780437]
[1762282595130,0.02857,101120.0,101110.0,1.20180437]
[1762282595332,0.08991,101120.0,101110.0,1.19780437]
[1762282595538,0.02857,101120.0,101110.0,1.19780437]
[1762282595742,0.02857,101120.0,101110.0,1.20180437]
[1762282595967,0.32610481,101120.0,101110.0,1.004]
[1762282596393,0.12832,101120.0,101110.0,1.20180437]
[1762282596592,0.02857,101120.0,101110.0,1.20180437]
[1762282596781,0.53776525,101130.0,101120.0,0.19778481]
[1762282596930,1.03294149,101140.0,101130.0,0.19776525]
[1762282597138,0.09975,101130.0,101120.0,0.19778481]
[1762282597383,0.09975,101130.0,101120.0,0.22178481]
[1762282597578,0.09975,101130.0,101120.0,0.19778481]
[1762282597808,0.29751525,101130.0,101120.0,0.20079741]
[1762282598020,0.97160149,101140.0,101120.0,0.20079741]
[1762282598021,0.37106,101150.0,101130.0,0.19774842]
[1762282598249,0.29012964,101150.0,101140.0,0.19774569]
[1762282598493,0.29749569,101140.0,101120.0,0.22707405]
[1762282598731,0.23615569,101140.0,101130.0,0.19776525]
[1762282598932,0.23615569,101140.0,101120.0,0.20767405]
[1762282599168,0.03841,101130.0,101120.0,0.20767405]
[1762282599364,0.09975,101130.0,101120.0,0.20767405]
[1762282599566,1.07387174,101150.0,101130.0,0.19776525]
[1762282599772,0.64001594,101150.0,101140.0,0.19774569]
[1762282599971,0.4324,101150.0,101140.0,0.19774569]
[1762282600154,0.37106,101150.0,101140.0,0.19774569]
[1762282600357,0.34489167,101170.0,101150.0,0.22171596]
[1762282600564,0.34,101160.0,101150.0,0.19771596]
[1762282600760,0.37841,101160.0,101150.0,0.19771596]
[1762282601012,1.4113124,101160.0,101140.0,0.20763297]
[1762282601207,0.02857,101150.0,101140.0,0.20763297]
[1762282601396,0.23769611,101170.0,101160.0,0.1977066]
[1762282601603,0.29903611,101170.0,101160.0,0.1977066]
[1762282601779,0.33744611,101170.0,101160.0,0.1977066]
[1762282601987,0.19773012,101150.0,101140.0,0.19774507]
[1762282602193,0.19774569,101140.0,101120.0,0.20767405]
[1762282602415,0.32605012,101150.0,101140.0,0.19774569]
[1762282602620,0.06698,101150.0,101140.0,0.19774569]
[1762282602822,0.12832,101150.0,101140.0,0.19774569]
[1762282603018,0.19772614,101150.0,101140.0,0.19774569]
[1762282603200,0.26470614,101150.0,101140.0,0.19774569]
[1762282603399,0.19774569,101140.0,101130.0,0.2076533]
[1762282603756,0.19774569,101140.0,101120.0,0.20767405]
[1762282603757,0.19776525,101130.0,101120.0,0.20767405]
[1762282603958,0.29751525,101130.0,101120.0,0.19778481]
[1762282604153,0.23617525,101130.0,101120.0,0.19778481]
[1762282604312,0.09975,101130.0,101120.0,0.19778481]
[1762282604519,0.03841,101130.0,101120.0,0.20079741]
[1762282605347,1.01003824,101150.0,101130.0,0.19775566]
[1762282605534,0.25908569,101140.0,101130.0,0.22175566]
[1762282605731,0.29749569,101140.0,101130.0,0.19775566]
[1762282605933,0.03841,101140.0,101130.0,0.19775566]
[1762282606200,0.42991,101150.0,101140.0,0.19774569]
[1762282606327,0.62763614,101150.0,101140.0,0.19774569]
[1762282606527,0.66604614,101150.0,101140.0,0.19774569]
[1762282606780,0.36857,101150.0,101140.0,0.22174569]
[1762282607345,0.66604614,101150.0,101140.0,0.19774569]
[1762282607544,0.29889603,101170.0,101140.0,0.24315297]
[1762282607746,0.29904089,101170.0,101160.0,0.1977066]
[1762282607950,0.63904089,101170.0,101160.0,0.1977066]
[1762282608309,0.33745089,101170.0,101150.0,0.19770862]
[1762282608511,0.19772614,101150.0,101140.0,0.20763297]
[1762282608778,0.02857,101150.0,101140.0,0.21163297]
[1762282608986,0.06698,101150.0,101140.0,0.20763297]
[1762282609177,0.23770089,101170.0,101160.0,0.1977066]
[1762282609178,0.00014486,101170.0,101160.0,0.1977066]
[1762282609525,0.03855486,101170.0,101160.0,0.1977066]
[1762282609724,0.29758192,101170.0,101160.0,0.1977066]
[1762282609926,0.29758192,101170.0,101140.0,0.23163297]
[1762282610149,0.35150543,101170.0,101160.0,0.1977066]
[1762282610365,0.23624192,101170.0,101160.0,0.1977066]
[1762282610563,0.23724192,101170.0,101160.0,0.2217066]
[1762282610806,0.03955486,101170.0,101160.0,0.1977066]
[1762282610960,0.10089486,101170.0,101160.0,0.1977066]
[1762282611157,0.29858192,101170.0,101160.0,0.00200761]
[1762282611370,1.49891278,101170.0,101160.0,0.00200761]
[1762282611567,0.19772614,101150.0,101140.0,0.003]
[1762282611775,0.19778481,101120.0,101110.0,1.0]
[1762282611986,1.42388405,101120.0,101110.0,1.0]
[1762282612680,0.65002825,101120.0,101110.0,1.0]
[1762282613137,1.42388405,101120.0,101110.0,1.0]
[1762282613364,1.42388405,101120.0,101110.0,0.53289]
[1762282614469,1.22296029,101120.0,101110.0,0.53289]
[1762282615352,1.79589233,101120.0,101110.0,0.53289]
[1762282615973,1.80289233,101120.0,101110.0,0.53289]
[1762282616400,1.22996029,101120.0,101110.0,0.53289]
[1762282616842,0.65702825,101120.0,101110.0,0.53289]
[1762282617056,1.22996029,101120.0,101110.0,0.53289]
[1762282617745,1.80289233,101120.0,101110.0,0.53289]
[1762282617961,1.89746839,101120.0,101110.0,0.53414584]
[1762282618181,0.75160431,101120.0,101110.0,0.53414584]
[1762282618393,1.22996029,101120.0,101110.0,0.53414584]
[1762282618609,1.80289233,101120.0,101110.0,0.53414584]
[1762282619513,1.22996029,101120.0,101110.0,0.53414584]
[1762282620181,1.80289233,101120.0,101110.0,0.53414584]
[1762282620412,1.22996029,101120.0,101110.0,0.53414584]
[1762282620636,1.288081,101120.0,101110.0,0.53414584]
[1762282620859,0.65702825,101120.0,101110.0,0.73195021]
[1762282621079,1.22996029,101120.0,101110.0,0.53414584]
[1762282621348,1.80289233,101120.0,101110.0,0.54402533]
[1762282621539,1.22996029,101120.0,101110.0,0.54402533]
[1762282621741,1.31753635,101120.0,101110.0,0.54402533]
[1762282622148,0.66610481,101120.0,101110.0,0.54402533]
[1762282622349,0.66610481,101120.0,101110.0,0.7418297]
[1762282622350,0.02857,101120.0,101110.0,0.7418297]
[1762282622553,0.20766462,101140.0,101130.0,0.19776525]
[1762282622761,0.19772614,101150.0,101130.0,0.00987949]
[1762282622962,0.63235569,101140.0,101130.0,0.01063283]
[1762282623159,0.19772675,101150.0,101130.0,0.20839808]
[1762282623370,0.25360935,101160.0,101130.0,0.217533]
[1762282623592,0.19774569,101140.0,101130.0,0.00987949]
[1762282623792,1.15003773,101140.0,101130.0,0.00987949]
[1762282624008,1.20528773,101140.0,101130.0,0.00987949]
[1762282624204,0.19774569,101140.0,101130.0,0.00987949]
[1762282624426,0.53772614,101150.0,101130.0,0.00987949]
[1762282624833,0.20074569,101140.0,101130.0,0.00987949]
[1762282625038,1.20828773,101140.0,101130.0,0.00987949]
[1762282626131,1.20528773,101140.0,101130.0,0.00987949]
[1762282629118,1.21518842,101140.0,101130.0,0.00962765]
[1762282629323,1.21518842,101140.0,101130.0,0.01038099]
[1762282630602,1.21492641,101140.0,101130.0,0.01038099]
[1762282631449,1.21492641,101140.0,101130.0,0.20814624]
[1762282631690,1.21492641,101140.0,101130.0,0.01038099]
[1762282632162,1.15967641,101140.0,101130.0,0.20814624]
[1762282632375,0.00990069,101140.0,101130.0,0.30752624]
[1762282632585,0.00990069,101140.0,101130.0,0.91664056]
[1762282632796,0.00990069,101140.0,101130.0,0.94064056]
[1762282633010,0.00990069,101140.0,101130.0,1.14064056]
[1762282633228,0.00990069,101140.0,101130.0,1.45664056]
[1762282633748,0.00990069,101140.0,101130.0,1.08370852]
[1762282633972,0.00990069,101140.0,101130.0,1.48064056]
[1762282634157,0.00890069,101140.0,101130.0,0.34370852]
[1762282634368,0.00890069,101140.0,101130.0,0.36770852]
[1762282634576,0.00890069,101140.0,101130.0,0.94364056]
[1762282634711,0.00890069,101140.0,101130.0,0.36770852]
[1762282635089,0.00990069,101140.0,101130.0,0.25451624]
[1762282635316,0.20764638,101140.0,101130.0,0.20814624]
[1762282635520,0.00990069,101140.0,101130.0,0.20814624]
[1762282635744,0.00990069,101140.0,101130.0,0.31252624]
[1762282635958,0.00890069,101140.0,101130.0,0.30752624]
[1762282636174,0.00890069,101140.0,101130.0,0.20814624]
[1762282636612,0.00890069,101140.0,101130.0,0.24751624]
[1762282636816,0.20664638,101140.0,101130.0,0.24751624]
[1762282637051,0.00890069,101140.0,101130.0,0.20814624]
[1762282637248,0.20664638,101140.0,101130.0,0.24751624]
[1762282637455,0.20664638,101140.0,101130.0,0.30752624]
[1762282637650,0.00890069,101140.0,101130.0,0.33252624]
[1762282637891,0.00890069,101140.0,101130.0,0.30852624]
[1762282638140,0.00890069,101140.0,101130.0,0.33252624]
[1762282638316,0.00890069,101140.0,101130.0,0.30852624]
[1762282639006,0.77957842,101140.0,101130.0,0.01138099]
[1762282639204,1.11957842,101140.0,101130.0,0.01038099]
[1762282639641,1.11957842,101140.0,101130.0,0.20814624]
[1762282639838,1.11957842,101140.0,101130.0,0.01038099]
[1762282640049,0.34890069,101140.0,101130.0,0.33152624]
[1762282640288,0.00890069,101140.0,101130.0,0.30752624]
[1762282640715,0.00890069,101140.0,101130.0,0.31052624]
[1762282640924,0.00890069,101140.0,101130.0,0.30752624]
[1762282641358,0.78057842,101140.0,101130.0,0.30752624]
[1762282641558,1.12057842,101140.0,101130.0,0.04975099]
[1762282641752,1.11957842,101140.0,101130.0,0.01038099]
[1762282642398,0.34890069,101140.0,101130.0,0.05002099]
[1762282642608,0.00890069,101140.0,101130.0,0.30483901]
[1762282642842,0.00890069,101140.0,101130.0,0.34094852]
[1762282643249,0.00890069,101140.0,101130.0,0.32876624]
[1762282643450,0.00890069,101140.0,101130.0,0.36494852]
[1762282643809,0.00990069,101140.0,101130.0,0.36494852]
[1762282643973,0.00990069,101140.0,101130.0,0.33994852]
[1762282644175,0.00990069,101140.0,101130.0,0.36394852]
[1762282644399,0.00990069,101140.0,101130.0,0.34094852]
[1762282644688,0.00990069,101140.0,101130.0,0.36494852]
[1762282644918,0.00990069,101140.0,101130.0,0.34094852]
[1762282645324,0.00990069,101140.0,101130.0,0.36494852]
[1762282645720,0.34014486,101160.0,101150.0,0.22172614]
[1762282645721,0.00014486,101160.0,101150.0,0.22172614]
[1762282645919,0.00014486,101160.0,101150.0,0.27583379]
[1762282646123,0.00014486,101160.0,101150.0,0.35606483]
[1762282646282,0.00014486,101160.0,101150.0,0.33206483]
[1762282646483,0.19785146,101160.0,101150.0,0.33206483]
[1762282646736,0.7707835,101160.0,101150.0,0.13433869]
[1762282646936,0.7707835,101160.0,101150.0,0.03971869]
[1762282647176,0.7707835,101160.0,101150.0,0.33306483]
[1762282647385,0.7707835,101160.0,101150.0,0.35706483]
[1762282647724,0.7707835,101160.0,101150.0,0.13533869]
[1762282648134,0.7707835,101160.0,101150.0,0.03971869]
[1762282648345,0.19785146,101160.0,101150.0,0.33306483]
[1762282648491,0.19785146,101160.0,101150.0,0.07935869]
[1762282648492,0.7707835,101160.0,101150.0,0.07935869]
[1762282649038,0.5730769,101160.0,101150.0,0.33306483]
[1762282649364,0.19785146,101160.0,101150.0,0.33306483]
[1762282649744,0.00014486,101160.0,101150.0,0.33306483]
[1762282650357,0.00014486,101160.0,101150.0,0.35706483]
[1762282650709,0.00014486,101160.0,101150.0,0.33306483]
[1762282651124,0.00014486,101160.0,101150.0,0.98813915]
[1762282651345,4.86e-06,101160.0,101150.0,1.01213915]
[1762282651507,0.207613,101190.0,101170.0,0.19768706]
[1762282651719,0.19773061,101190.0,101180.0,0.26184752]
[1762282651923,0.19773061,101190.0,101180.0,0.12]
[1762282652127,0.77056068,101200.0,101190.0,0.19764798]
[1762282652371,0.19777347,101200.0,101190.0,0.29891563]
[1762282652530,0.19777347,101200.0,101190.0,0.32291563]
[1762282652531,0.00014483,101200.0,101190.0,0.32291563]
[1762282652974,0.19777328,101200.0,101190.0,0.29891563]
[1762282653374,0.00014483,101200.0,101190.0,0.29891563]
[1762282653777,0.00014483,101200.0,101190.0,0.33509791]
[1762282653980,0.00014483,101200.0,101190.0,0.35909791]
[1762282654263,0.00114483,101200.0,101190.0,0.35909791]
[1762282654639,0.00014483,101200.0,101190.0,0.93202995]
[1762282654842,0.1975894,101220.0,101200.0,0.23147659]
[1762282654997,0.19770368,101230.0,101220.0,0.02836]
[1762282655200,0.19787658,101240.0,101220.0,0.27139705]
[1762282655444,0.19835947,101240.0,101230.0,0.12]
[1762282655625,0.53835947,101240.0,101230.0,0.12]
[1762282656032,0.00068289,101240.0,101230.0,0.12]
[1762282656296,0.19823326,101240.0,101230.0,0.12]
[1762282656708,0.53923326,101240.0,101230.0,0.12]
[1762282656911,1.1111653,101240.0,101230.0,0.12]
[1762282657219,0.53923326,101240.0,101230.0,0.12]
[1762282657428,0.53923326,101240.0,101230.0,0.31756989]
[1762282657628,0.53923326,101240.0,101230.0,0.12]
[1762282657824,0.00168289,101240.0,101230.0,0.31756989]
[1762282658106,0.00168289,101240.0,101230.0,0.45151822]
[1762282658271,0.20765233,101270.0,101250.0,0.23335086]